[Event "*** Qualifier 2: Titled Tuesday 3|2 Blitz"]
[Site "Chess.com"]
[Date "2017.04.11"]
[Round "6"]
[White "Outsmiter"]
[Black "Tolya2"]
[Result "1/2-1/2"]
[WhiteElo "2106"]
[BlackElo "2315"]
[TimeControl "180+2"]
[EndTime "14:24:41 PDT"]
[Termination "Game drawn - insufficient material"]

1. e4 {[%clk 0:03:02]} 1... c5 {[%clk 0:02:59.5]} 2. Nc3 {[%clk 0:03:02.5]} 2...
e6 {[%clk 0:02:59.9]} 3. f4 {[%clk 0:03:03.7]} 3... d5 {[%clk 0:03:00.8]} 4. Nf3
{[%clk 0:03:04.5]} 4... dxe4 {[%clk 0:03:01.9]} 5. Nxe4 {[%clk 0:03:06.4]} 5...
Be7 {[%clk 0:03:03]} 6. Bb5+ {[%clk 0:03:05.5]} 6... Bd7 {[%clk 0:03:02.8]} 7.
a4 {[%clk 0:03:03.3]} 7... Nf6 {[%clk 0:03:02.2]} 8. d3 {[%clk 0:02:57.2]} 8...
O-O {[%clk 0:03:01.2]} 9. O-O {[%clk 0:02:56]} 9... Bc6 {[%clk 0:03:00.7]} 10.
Qe2 {[%clk 0:02:51.9]} 10... a6 {[%clk 0:03:01.1]} 11. Bc4 {[%clk 0:02:41.3]}
11... Nbd7 {[%clk 0:02:58.2]} 12. Ne5 {[%clk 0:02:35.5]} 12... Nxe4 {[%clk
0:02:56.9]} 13. Nxc6 {[%clk 0:02:29.5]} 13... bxc6 {[%clk 0:02:56.6]} 14. Qxe4
{[%clk 0:02:25.1]} 14... Nb6 {[%clk 0:02:44.9]} 15. a5 {[%clk 0:02:16]} 15...
Nxc4 {[%clk 0:02:45.5]} 16. Qxc4 {[%clk 0:02:13.4]} 16... Qd5 {[%clk 0:02:42.4]}
17. Be3 {[%clk 0:02:09.8]} 17... Rfb8 {[%clk 0:02:35.4]} 18. b3 {[%clk
0:02:04.5]} 18... Rb4 {[%clk 0:02:35.7]} 19. Qc3 {[%clk 0:01:55.7]} 19... Rb5
{[%clk 0:02:26.3]} 20. Ra4 {[%clk 0:01:51.1]} 20... Bf6 {[%clk 0:02:25.3]} 21.
Qc4 {[%clk 0:01:48.5]} 21... Rab8 {[%clk 0:02:07]} 22. Bd2 {[%clk 0:01:28.4]}
22... Bd4+ {[%clk 0:02:04]} 23. Kh1 {[%clk 0:01:28.1]} 23... g6 {[%clk
0:02:03.4]} 24. Re1 {[%clk 0:00:49.4]} 24... h5 {[%clk 0:02:02]} 25. Re4 {[%clk
0:00:44.3]} 25... Rd8 {[%clk 0:01:51.6]} 26. Bc3 {[%clk 0:00:27.3]} 26... Qxc4
{[%clk 0:01:32]} 27. Rxc4 {[%clk 0:00:20.5]} 27... Bxc3 {[%clk 0:01:26]} 28.
Rxc3 {[%clk 0:00:22.4]} 28... Rxa5 {[%clk 0:01:27.1]} 29. h3 {[%clk 0:00:23.3]}
29... Kf8 {[%clk 0:01:17.6]} 30. Kh2 {[%clk 0:00:23.6]} 30... Ke7 {[%clk
0:01:17.6]} 31. Kg3 {[%clk 0:00:24.8]} 31... Rd5 {[%clk 0:01:17.4]} 32. Kh4
{[%clk 0:00:24.9]} 32... Kf6 {[%clk 0:01:17.2]} 33. g4 {[%clk 0:00:25.7]} 33...
hxg4 {[%clk 0:01:18.4]} 34. hxg4 {[%clk 0:00:27.6]} 34... Ra1 {[%clk 0:01:17.4]}
35. Rec4 {[%clk 0:00:27.4]} 35... Ra5 {[%clk 0:01:15.3]} 36. Kg3 {[%clk
0:00:27.9]} 36... Ke7 {[%clk 0:01:15.3]} 37. Kf3 {[%clk 0:00:28.9]} 37... Kd6
{[%clk 0:01:10.6]} 38. g5 {[%clk 0:00:28.8]} 38... Ra1 {[%clk 0:01:10.6]} 39.
Re4 {[%clk 0:00:26.3]} 39... Rf1+ {[%clk 0:01:10.4]} 40. Ke2 {[%clk 0:00:25.9]}
40... Rh1 {[%clk 0:01:08.3]} 41. Rcc4 {[%clk 0:00:26.4]} 41... Rh2+ {[%clk
0:00:59]} 42. Kd1 {[%clk 0:00:26.2]} 42... e5 {[%clk 0:01:00.3]} 43. fxe5+
{[%clk 0:00:24.2]} 43... Rxe5 {[%clk 0:01:01]} 44. Rxe5 {[%clk 0:00:25.5]} 44...
Kxe5 {[%clk 0:01:02.2]} 45. Rxc5+ {[%clk 0:00:26.8]} 45... Kd6 {[%clk
0:01:01.4]} 46. Ra5 {[%clk 0:00:27.6]} 46... Rg2 {[%clk 0:01:02.3]} 47. Kc1
{[%clk 0:00:26.6]} 47... c5 {[%clk 0:01:02.8]} 48. Rxa6+ {[%clk 0:00:27.3]}
48... Ke5 {[%clk 0:01:04]} 49. Rf6 {[%clk 0:00:27.6]} 49... Rxg5 {[%clk
0:01:01.9]} 50. Rxf7 {[%clk 0:00:28.6]} 50... Rg1+ {[%clk 0:01:01.3]} 51. Kb2
{[%clk 0:00:29.3]} 51... g5 {[%clk 0:01:03.2]} 52. Kc3 {[%clk 0:00:28.8]} 52...
g4 {[%clk 0:01:03.5]} 53. b4 {[%clk 0:00:29.6]} 53... cxb4+ {[%clk 0:01:03.6]}
54. Kxb4 {[%clk 0:00:31.5]} 54... g3 {[%clk 0:01:05]} 55. Rg7 {[%clk 0:00:31.8]}
55... g2 {[%clk 0:01:05.1]} 56. Kc5 {[%clk 0:00:30.8]} 56... Kf4 {[%clk
0:01:04.1]} 57. c4 {[%clk 0:00:30.1]} 57... Kf3 {[%clk 0:01:05.2]} 58. Rf7+
{[%clk 0:00:30.5]} 58... Ke3 {[%clk 0:01:05.3]} 59. Rg7 {[%clk 0:00:28]} 59...
Kxd3 {[%clk 0:01:06.1]} 60. Rg3+ {[%clk 0:00:28.2]} 60... Ke2 {[%clk 0:01:06.8]}
61. Rg8 {[%clk 0:00:28.1]} 61... Kf2 {[%clk 0:01:07.4]} 62. Kc6 {[%clk 0:00:29]}
62... Rc1 {[%clk 0:01:06.6]} 63. c5 {[%clk 0:00:29.9]} 63... g1=Q {[%clk
0:01:07]} 64. Rxg1 {[%clk 0:00:31.1]} 64... Kxg1 {[%clk 0:01:05.6]} 65. Kb6
{[%clk 0:00:31.7]} 65... Kf2 {[%clk 0:01:04.5]} 66. c6 {[%clk 0:00:32.4]} 66...
Ke3 {[%clk 0:01:05.6]} 67. Kb7 {[%clk 0:00:33.1]} 67... Kd4 {[%clk 0:01:06.4]}
68. c7 {[%clk 0:00:34.2]} 68... Kd5 {[%clk 0:01:07.3]} 69. c8=Q {[%clk
0:00:34.4]} 69... Rxc8 {[%clk 0:01:08.8]} 70. Kxc8 {[%clk 0:00:36.1]} 1/2-1/2

[Event "*** Qualifier 2: Titled Tuesday 3|2 Blitz"]
[Site "Chess.com"]
[Date "2017.04.11"]
[Round "6"]
[White "Feegus"]
[Black "TomsKantans"]
[Result "0-1"]
[WhiteElo "2380"]
[BlackElo "2482"]
[TimeControl "180+2"]
[EndTime "14:24:45 PDT"]
[Termination "TomsKantans won by resignation"]

1. d4 {[%clk 0:03:02]} 1... Nf6 {[%clk 0:02:59.5]} 2. Bf4 {[%clk 0:03:03.2]}
2... g6 {[%clk 0:03:00]} 3. e3 {[%clk 0:03:04.3]} 3... Bg7 {[%clk 0:03:01.1]} 4.
Nf3 {[%clk 0:03:05.9]} 4... O-O {[%clk 0:03:02.1]} 5. Be2 {[%clk 0:03:07.2]}
5... d6 {[%clk 0:03:03.4]} 6. O-O {[%clk 0:03:08.4]} 6... b6 {[%clk 0:03:01.2]}
7. h3 {[%clk 0:03:08.9]} 7... Bb7 {[%clk 0:03:02.5]} 8. a4 {[%clk 0:03:10.6]}
8... a5 {[%clk 0:03:02.1]} 9. c3 {[%clk 0:03:06]} 9... Nbd7 {[%clk 0:03:03.1]}
10. Bh2 {[%clk 0:03:06.3]} 10... e6 {[%clk 0:03:03.6]} 11. Nbd2 {[%clk
0:03:04.9]} 11... Qe7 {[%clk 0:03:04.3]} 12. Re1 {[%clk 0:02:58.5]} 12... Rfd8
{[%clk 0:03:01.1]} 13. Nc4 {[%clk 0:02:58]} 13... Ne4 {[%clk 0:03:00]} 14. Bf1
{[%clk 0:02:55.4]} 14... f5 {[%clk 0:02:55.8]} 15. Rc1 {[%clk 0:02:55.7]} 15...
h6 {[%clk 0:02:53.7]} 16. Na3 {[%clk 0:02:56.8]} 16... Kh7 {[%clk 0:02:52.4]}
17. c4 {[%clk 0:02:56.9]} 17... Ndf6 {[%clk 0:02:41.7]} 18. Qc2 {[%clk
0:02:38.5]} 18... Rd7 {[%clk 0:02:32.4]} 19. Red1 {[%clk 0:02:33.5]} 19... Rad8
{[%clk 0:02:30.1]} 20. Nb5 {[%clk 0:02:13.5]} 20... Qf7 {[%clk 0:02:11.5]} 21.
b3 {[%clk 0:01:14.1]} 21... Kh8 {[%clk 0:02:10.4]} 22. Be2 {[%clk 0:01:08.9]}
22... g5 {[%clk 0:02:10]} 23. c5 {[%clk 0:01:08.7]} 23... bxc5 {[%clk 0:01:54]}
24. dxc5 {[%clk 0:01:09.4]} 24... Nxc5 {[%clk 0:01:52.9]} 25. Ne5 {[%clk
0:01:10.8]} 25... dxe5 {[%clk 0:01:53.5]} 26. Qxc5 {[%clk 0:01:10.8]} 26... Ne4
{[%clk 0:01:46.6]} 27. Rxd7 {[%clk 0:01:04.2]} 27... Rxd7 {[%clk 0:01:45.3]} 28.
Qa7 {[%clk 0:01:04.8]} 28... c6 {[%clk 0:01:46.1]} 29. Na3 {[%clk 0:00:47.1]}
29... f4 {[%clk 0:01:40.8]} 30. Rf1 {[%clk 0:00:28.4]} 30... Nc3 {[%clk
0:01:03.5]} 31. Bg4 {[%clk 0:00:24.1]} 31... e4 {[%clk 0:01:03.9]} 32. Qxa5
{[%clk 0:00:19.7]} 32... h5 {[%clk 0:00:59.8]} 33. Qxg5 {[%clk 0:00:12.6]} 33...
hxg4 {[%clk 0:01:00.8]} 34. Bxf4 {[%clk 0:00:14.1]} 34... gxh3 {[%clk
0:01:00.2]} 35. Qh4+ {[%clk 0:00:15]} 35... Kg8 {[%clk 0:01:01.1]} 36. Qxh3
{[%clk 0:00:16.2]} 36... Ne2+ {[%clk 0:01:02]} 37. Kh2 {[%clk 0:00:17.3]} 37...
Nxf4 {[%clk 0:01:03]} 38. exf4 {[%clk 0:00:17]} 38... Qxf4+ {[%clk 0:01:04.9]}
39. g3 {[%clk 0:00:18.1]} 39... Qf5 {[%clk 0:01:04.6]} 40. Nc4 {[%clk
0:00:18.4]} 40... Ba6 {[%clk 0:01:04.4]} 41. Rc1 {[%clk 0:00:16.9]} 41... Rd3
{[%clk 0:01:03]} 42. Qxf5 {[%clk 0:00:14.4]} 42... exf5 {[%clk 0:01:03.8]} 43.
Na5 {[%clk 0:00:16.3]} 43... Rd2 {[%clk 0:01:01.5]} 44. Rxc6 {[%clk 0:00:16.7]}
44... Bd3 {[%clk 0:00:58.3]} 45. b4 {[%clk 0:00:15.7]} 45... Rxf2+ {[%clk
0:00:58.8]} 46. Kg1 {[%clk 0:00:16.6]} 46... Bd4 {[%clk 0:00:59.3]} 47. b5
{[%clk 0:00:11.9]} 47... Ra2+ {[%clk 0:00:54.8]} 48. Kh1 {[%clk 0:00:12.2]}
48... e3 {[%clk 0:00:55.4]} 49. b6 {[%clk 0:00:11.4]} 49... Be4+ {[%clk
0:00:56]} 0-1

[Event "*** Qualifier 2: Titled Tuesday 3|2 Blitz"]
[Site "Chess.com"]
[Date "2017.04.11"]
[Round "6"]
[White "MITerryble"]
[Black "JoachimBN"]
[Result "0-1"]
[WhiteElo "2632"]
[BlackElo "2566"]
[TimeControl "180+2"]
[EndTime "14:24:49 PDT"]
[Termination "JoachimBN won by resignation"]

1. d4 {[%clk 0:03:02]} 1... Nf6 {[%clk 0:02:59.3]} 2. Nf3 {[%clk 0:03:03.2]}
2... e6 {[%clk 0:02:57.9]} 3. c4 {[%clk 0:03:04.1]} 3... b6 {[%clk 0:02:57.5]}
4. g3 {[%clk 0:03:05.3]} 4... Bb7 {[%clk 0:02:56.5]} 5. Bg2 {[%clk 0:03:06.1]}
5... g6 {[%clk 0:02:49.9]} 6. O-O {[%clk 0:03:06.8]} 6... Bg7 {[%clk 0:02:51.2]}
7. Nc3 {[%clk 0:03:08.7]} 7... O-O {[%clk 0:02:48.7]} 8. Qc2 {[%clk 0:03:09.4]}
8... c5 {[%clk 0:02:41.3]} 9. dxc5 {[%clk 0:03:08.5]} 9... bxc5 {[%clk
0:02:43.2]} 10. Rd1 {[%clk 0:03:10.1]} 10... Nc6 {[%clk 0:02:41.4]} 11. Bf4
{[%clk 0:03:10.6]} 11... d5 {[%clk 0:02:38.9]} 12. Ne5 {[%clk 0:02:57.2]} 12...
Rc8 {[%clk 0:02:34.8]} 13. cxd5 {[%clk 0:02:51.4]} 13... Nd4 {[%clk 0:02:30.8]}
14. Qa4 {[%clk 0:02:13.7]} 14... Nxd5 {[%clk 0:02:26.3]} 15. Nxd5 {[%clk
0:02:07.5]} 15... Bxd5 {[%clk 0:02:28.2]} 16. e4 {[%clk 0:02:04.3]} 16... Ba8
{[%clk 0:02:13.4]} 17. Nc4 {[%clk 0:02:05.2]} 17... f5 {[%clk 0:02:00.3]} 18.
Qxa7 {[%clk 0:01:37.2]} 18... Bxe4 {[%clk 0:01:40.3]} 19. Bxe4 {[%clk
0:01:26.7]} 19... fxe4 {[%clk 0:01:42.2]} 20. Qa6 {[%clk 0:00:49.1]} 20... Qf6
{[%clk 0:00:59.6]} 21. Nd6 {[%clk 0:00:48.7]} 21... Rc6 {[%clk 0:00:53.4]} 22.
Qc4 {[%clk 0:00:46.4]} 22... Rxd6 {[%clk 0:00:48.9]} 23. Qxc5 {[%clk 0:00:38.4]}
23... Rdd8 {[%clk 0:00:41.8]} 24. Qc4 {[%clk 0:00:35.3]} 24... Qf5 {[%clk
0:00:37.6]} 25. Be3 {[%clk 0:00:31.8]} 25... Nf3+ {[%clk 0:00:28.5]} 26. Kg2
{[%clk 0:00:32.5]} 26... Qg4 {[%clk 0:00:30.1]} 27. Rxd8 {[%clk 0:00:24.7]}
27... Rxd8 {[%clk 0:00:32]} 28. h3 {[%clk 0:00:25.3]} 28... Qf5 {[%clk
0:00:29.9]} 29. a4 {[%clk 0:00:14.9]} 29... Ne5 {[%clk 0:00:29.9]} 30. Qc7
{[%clk 0:00:13.3]} 30... Qf3+ {[%clk 0:00:31.8]} 31. Kg1 {[%clk 0:00:14.6]}
31... Rf8 {[%clk 0:00:28.9]} 32. Bc5 {[%clk 0:00:10.9]} 32... Nd3 {[%clk
0:00:20.5]} 33. Rf1 {[%clk 0:00:11.4]} 33... Nxc5 {[%clk 0:00:20.2]} 34. Qxc5
{[%clk 0:00:13.3]} 34... Bxb2 {[%clk 0:00:16.6]} 35. Qc4 {[%clk 0:00:12.8]}
35... Qf5 {[%clk 0:00:14.2]} 36. a5 {[%clk 0:00:12.6]} 36... e3 {[%clk
0:00:13.8]} 37. a6 {[%clk 0:00:11.7]} 37... exf2+ {[%clk 0:00:14.5]} 38. Kh2
{[%clk 0:00:13.1]} 38... Qd5 {[%clk 0:00:10.7]} 39. Qe2 {[%clk 0:00:11.9]} 39...
Bd4 {[%clk 0:00:11.7]} 40. Rd1 {[%clk 0:00:12.8]} 40... Qc5 {[%clk 0:00:09.5]}
41. Qxe6+ {[%clk 0:00:12.8]} 41... Kg7 {[%clk 0:00:11.1]} 42. Kg2 {[%clk
0:00:11.6]} 42... Rf7 {[%clk 0:00:12.1]} 43. Qe2 {[%clk 0:00:11.3]} 43... Qc6+
{[%clk 0:00:12.9]} 44. Kh2 {[%clk 0:00:12.7]} 44... Ba7 {[%clk 0:00:12]} 45. Qd3
{[%clk 0:00:12.2]} 45... Qf3 {[%clk 0:00:12.7]} 46. Qf1 {[%clk 0:00:12.3]} 46...
Qxd1 {[%clk 0:00:13.2]} 47. Qxd1 {[%clk 0:00:12.3]} 47... f1=Q {[%clk
0:00:15.1]} 48. Qxf1 {[%clk 0:00:13]} 0-1

[Event "*** Qualifier 2: Titled Tuesday 3|2 Blitz"]
[Site "Chess.com"]
[Date "2017.04.11"]
[Round "6"]
[White "hermionegrangermagic"]
[Black "Grebeniuk-S"]
[Result "0-1"]
[WhiteElo "2279"]
[BlackElo "2401"]
[TimeControl "180+2"]
[EndTime "14:25:01 PDT"]
[Termination "Grebeniuk-S won by checkmate"]

1. e4 {[%clk 0:03:02]} 1... d5 {[%clk 0:02:58.5]} 2. exd5 {[%clk 0:03:02.7]}
2... Qxd5 {[%clk 0:03:00.4]} 3. Nc3 {[%clk 0:03:03.6]} 3... Qa5 {[%clk 0:03:02]}
4. d4 {[%clk 0:03:04.4]} 4... Nf6 {[%clk 0:03:03.5]} 5. Bd2 {[%clk 0:03:05.3]}
5... Qb6 {[%clk 0:03:04]} 6. Nf3 {[%clk 0:03:02.3]} 6... Bg4 {[%clk 0:03:04.7]}
7. Bc4 {[%clk 0:02:51.1]} 7... e6 {[%clk 0:03:03.1]} 8. O-O {[%clk 0:02:46.8]}
8... c6 {[%clk 0:03:04]} 9. Bb3 {[%clk 0:02:06.4]} 9... Bd6 {[%clk 0:03:03.7]}
10. Be3 {[%clk 0:02:07]} 10... Qc7 {[%clk 0:03:04.3]} 11. h3 {[%clk 0:02:07.7]}
11... Bh5 {[%clk 0:03:05.7]} 12. g4 {[%clk 0:02:00.8]} 12... Bg6 {[%clk
0:03:06.5]} 13. Re1 {[%clk 0:01:29.5]} 13... O-O {[%clk 0:02:59.2]} 14. Bg5
{[%clk 0:01:26.4]} 14... Nbd7 {[%clk 0:02:59.2]} 15. a4 {[%clk 0:01:19.7]} 15...
h6 {[%clk 0:02:59]} 16. Be3 {[%clk 0:01:10.6]} 16... Rfe8 {[%clk 0:03:00]} 17.
Qd2 {[%clk 0:01:00.8]} 17... Nd5 {[%clk 0:02:54.2]} 18. Nxd5 {[%clk 0:00:48.2]}
18... exd5 {[%clk 0:02:35.3]} 19. Nh4 {[%clk 0:00:39.4]} 19... Be4 {[%clk
0:02:31.1]} 20. c3 {[%clk 0:00:30.1]} 20... Nf8 {[%clk 0:02:02.6]} 21. Bc2
{[%clk 0:00:28.6]} 21... Qd8 {[%clk 0:01:39.4]} 22. Nf5 {[%clk 0:00:26.1]} 22...
Bxf5 {[%clk 0:01:32.4]} 23. Bxf5 {[%clk 0:00:26]} 23... Qf6 {[%clk 0:01:34]} 24.
Bc2 {[%clk 0:00:18.1]} 24... Ng6 {[%clk 0:01:27.9]} 25. Qd3 {[%clk 0:00:16.2]}
25... Re4 {[%clk 0:01:26]} 26. Qd2 {[%clk 0:00:07]} 26... Ree8 {[%clk
0:01:24.2]} 27. Qd3 {[%clk 0:00:08.2]} 27... Rad8 {[%clk 0:01:18.9]} 28. Qf5
{[%clk 0:00:08.8]} 28... Qxf5 {[%clk 0:01:19.5]} 29. gxf5 {[%clk 0:00:05]} 29...
Nh4 {[%clk 0:01:09.8]} 30. Re2 {[%clk 0:00:06.2]} 30... Re7 {[%clk 0:01:03.6]}
31. a5 {[%clk 0:00:07]} 31... a6 {[%clk 0:01:04.2]} 32. b4 {[%clk 0:00:06.2]}
32... Rde8 {[%clk 0:01:05.3]} 33. Rd1 {[%clk 0:00:06.1]} 33... Bf4 {[%clk
0:01:02.7]} 34. Rd3 {[%clk 0:00:06.4]} 34... Bg5 {[%clk 0:00:58.2]} 35. Kf1
{[%clk 0:00:03.4]} 35... Nxf5 {[%clk 0:00:55.6]} 36. Bb1 {[%clk 0:00:02.1]}
36... Bxe3 {[%clk 0:00:50]} 37. fxe3 {[%clk 0:00:04]} 37... Ng3+ {[%clk
0:00:51]} 38. Kf2 {[%clk 0:00:04.9]} 38... Nxe2 {[%clk 0:00:52.9]} 39. Kxe2
{[%clk 0:00:06.5]} 39... f5 {[%clk 0:00:53]} 40. Kf3 {[%clk 0:00:06.9]} 40... g5
{[%clk 0:00:53.4]} 41. Ba2 {[%clk 0:00:07.9]} 41... Kg7 {[%clk 0:00:53.9]} 42.
c4 {[%clk 0:00:09.3]} 42... dxc4 {[%clk 0:00:46.7]} 43. Bxc4 {[%clk 0:00:11.2]}
43... Kf6 {[%clk 0:00:45.8]} 44. d5 {[%clk 0:00:12.3]} 44... cxd5 {[%clk
0:00:44.7]} 45. Bxd5 {[%clk 0:00:13.4]} 45... Rd8 {[%clk 0:00:43.9]} 46. Rd4
{[%clk 0:00:13.6]} 46... Red7 {[%clk 0:00:43.1]} 47. e4 {[%clk 0:00:14.4]} 47...
fxe4+ {[%clk 0:00:43.7]} 48. Kxe4 {[%clk 0:00:15.1]} 48... h5 {[%clk 0:00:37]}
49. Rd1 {[%clk 0:00:15.1]} 49... Rxd5 {[%clk 0:00:35]} 50. Rxd5 {[%clk
0:00:15.4]} 50... Rxd5 {[%clk 0:00:36.9]} 51. Kxd5 {[%clk 0:00:17.1]} 51... g4
{[%clk 0:00:29.8]} 52. hxg4 {[%clk 0:00:17.6]} 52... hxg4 {[%clk 0:00:31.7]} 53.
Ke4 {[%clk 0:00:18.8]} 53... Kg5 {[%clk 0:00:32.9]} 54. Ke3 {[%clk 0:00:20]}
54... Kf5 {[%clk 0:00:31.6]} 55. Kf2 {[%clk 0:00:20.9]} 55... Kf4 {[%clk
0:00:32.8]} 56. Kg2 {[%clk 0:00:22.1]} 56... g3 {[%clk 0:00:31.7]} 57. Kg1
{[%clk 0:00:23]} 57... Kf3 {[%clk 0:00:33.1]} 58. Kf1 {[%clk 0:00:23.9]} 58...
Ke3 {[%clk 0:00:31.6]} 59. Kg2 {[%clk 0:00:24.9]} 59... Kd4 {[%clk 0:00:33]} 60.
Kxg3 {[%clk 0:00:24.1]} 60... Kc4 {[%clk 0:00:34.4]} 61. Kf3 {[%clk 0:00:25.5]}
61... Kxb4 {[%clk 0:00:35.7]} 62. Ke4 {[%clk 0:00:27.4]} 62... Kxa5 {[%clk
0:00:37.6]} 63. Kd5 {[%clk 0:00:28.9]} 63... Kb4 {[%clk 0:00:39.5]} 64. Kd4
{[%clk 0:00:30.2]} 64... b5 {[%clk 0:00:41.4]} 65. Kd3 {[%clk 0:00:32]} 65... a5
{[%clk 0:00:43.3]} 66. Kc2 {[%clk 0:00:33.6]} 66... Ka3 {[%clk 0:00:44.7]} 67.
Kc3 {[%clk 0:00:34.6]} 67... b4+ {[%clk 0:00:45.5]} 68. Kc4 {[%clk 0:00:36.5]}
68... b3 {[%clk 0:00:46.4]} 69. Kb5 {[%clk 0:00:38.4]} 69... b2 {[%clk
0:00:47.4]} 70. Kxa5 {[%clk 0:00:40.3]} 70... b1=Q {[%clk 0:00:48.6]} 71. Ka6
{[%clk 0:00:42.2]} 71... Qb4 {[%clk 0:00:48.9]} 72. Ka7 {[%clk 0:00:44.1]} 72...
Kb3 {[%clk 0:00:50.6]} 73. Ka8 {[%clk 0:00:46]} 73... Kc4 {[%clk 0:00:52.5]} 74.
Ka7 {[%clk 0:00:47.9]} 74... Kc5 {[%clk 0:00:54.3]} 75. Ka8 {[%clk 0:00:49.5]}
75... Kc6 {[%clk 0:00:56.2]} 76. Ka7 {[%clk 0:00:51.4]} 76... Qb7# {[%clk
0:00:57.4]} 0-1

[Event "*** Qualifier 2: Titled Tuesday 3|2 Blitz"]
[Site "Chess.com"]
[Date "2017.04.11"]
[Round "6"]
[White "Witik"]
[Black "platy3"]
[Result "1-0"]
[WhiteElo "2516"]
[BlackElo "2634"]
[TimeControl "180+2"]
[EndTime "14:25:34 PDT"]
[Termination "Witik won by resignation"]

1. e4 {[%clk 0:03:02]} 1... c5 {[%clk 0:02:56.8]} 2. Nf3 {[%clk 0:03:03]} 2...
e6 {[%clk 0:02:57.4]} 3. d4 {[%clk 0:03:04.2]} 3... cxd4 {[%clk 0:02:58.8]} 4.
Nxd4 {[%clk 0:03:04.8]} 4... Nc6 {[%clk 0:02:59.3]} 5. Nc3 {[%clk 0:03:04]} 5...
Qc7 {[%clk 0:02:59.3]} 6. Be3 {[%clk 0:03:04.5]} 6... a6 {[%clk 0:03:00]} 7. Qf3
{[%clk 0:03:05.3]} 7... Nf6 {[%clk 0:02:57]} 8. O-O-O {[%clk 0:03:06.2]} 8...
Bb4 {[%clk 0:02:57.9]} 9. Nxc6 {[%clk 0:03:03.8]} 9... bxc6 {[%clk 0:02:59.8]}
10. Bd4 {[%clk 0:03:04.8]} 10... d5 {[%clk 0:03:00.2]} 11. exd5 {[%clk
0:02:59.2]} 11... cxd5 {[%clk 0:02:58.2]} 12. Bd3 {[%clk 0:03:00.2]} 12... Bc5
{[%clk 0:02:34.3]} 13. Qe3 {[%clk 0:02:54.4]} 13... Bxd4 {[%clk 0:02:00.1]} 14.
Qxd4 {[%clk 0:02:55.2]} 14... O-O {[%clk 0:02:01.6]} 15. f4 {[%clk 0:02:56.1]}
15... Rb8 {[%clk 0:02:01.1]} 16. g4 {[%clk 0:02:51.4]} 16... Nd7 {[%clk
0:01:38.7]} 17. h4 {[%clk 0:02:47.8]} 17... Qc5 {[%clk 0:01:36.3]} 18. Ne2
{[%clk 0:02:44.7]} 18... Rb4 {[%clk 0:01:31.9]} 19. Qxc5 {[%clk 0:02:42.9]}
19... Nxc5 {[%clk 0:01:33.8]} 20. c3 {[%clk 0:02:40.2]} 20... Rb6 {[%clk
0:01:30.3]} 21. Bc2 {[%clk 0:02:40.8]} 21... a5 {[%clk 0:01:25.4]} 22. Nd4
{[%clk 0:02:40.3]} 22... Bd7 {[%clk 0:01:20.5]} 23. g5 {[%clk 0:02:41.5]} 23...
Rfb8 {[%clk 0:01:20.5]} 24. b3 {[%clk 0:02:39.4]} 24... Nb7 {[%clk 0:01:15.7]}
25. h5 {[%clk 0:02:36.6]} 25... Nd6 {[%clk 0:01:04.4]} 26. h6 {[%clk 0:02:30]}
26... g6 {[%clk 0:01:04.4]} 27. Kd2 {[%clk 0:02:28.6]} 27... Rc8 {[%clk
0:01:02.9]} 28. Rhe1 {[%clk 0:02:29.1]} 28... Kf8 {[%clk 0:00:54.6]} 29. Re3
{[%clk 0:02:29.5]} 29... Ke7 {[%clk 0:00:53]} 30. f5 {[%clk 0:02:27.6]} 30...
gxf5 {[%clk 0:00:47.1]} 31. Bxf5 {[%clk 0:02:23.6]} 31... Rg8 {[%clk 0:00:36.3]}
32. Bxh7 {[%clk 0:02:17.7]} 32... Rxg5 {[%clk 0:00:37.1]} 33. Bd3 {[%clk
0:02:15.8]} 33... Rh5 {[%clk 0:00:33.7]} 34. h7 {[%clk 0:02:16]} 34... Rb8
{[%clk 0:00:31.3]} 35. Rg1 {[%clk 0:02:12.6]} 35... Rh8 {[%clk 0:00:31.8]} 36.
Rg8 {[%clk 0:02:10.3]} 36... R8xh7 {[%clk 0:00:32.6]} 37. Bxh7 {[%clk
0:02:10.9]} 37... Rxh7 {[%clk 0:00:34.5]} 38. Ra8 {[%clk 0:02:05.7]} 38... Ne4+
{[%clk 0:00:35.3]} 39. Kc2 {[%clk 0:02:03.3]} 39... f5 {[%clk 0:00:32.6]} 40.
Rxa5 {[%clk 0:02:01.2]} 40... Rh2+ {[%clk 0:00:31.2]} 41. Kb1 {[%clk 0:01:52.8]}
41... f4 {[%clk 0:00:27.8]} 42. Rd3 {[%clk 0:01:53.9]} 42... Kf6 {[%clk
0:00:22.1]} 43. Nc2 {[%clk 0:01:45.8]} 43... Be8 {[%clk 0:00:16.5]} 44. Kc1
{[%clk 0:01:42.9]} 44... Bg6 {[%clk 0:00:17.4]} 45. Nb4 {[%clk 0:01:43.9]} 45...
Ng5 {[%clk 0:00:10.4]} 46. Rd2 {[%clk 0:01:41.1]} 46... Rh1+ {[%clk 0:00:09.9]}
47. Kb2 {[%clk 0:01:38.2]} 47... f3 {[%clk 0:00:11.3]} 48. Ra8 {[%clk
0:01:35.3]} 48... Be4 {[%clk 0:00:11.3]} 49. Rf8+ {[%clk 0:01:33.3]} 49... Kg7
{[%clk 0:00:09.4]} 50. Rf4 {[%clk 0:01:31.4]} 50... Rg1 {[%clk 0:00:10.1]} 51.
Ka3 {[%clk 0:01:26.4]} 51... Kg6 {[%clk 0:00:08.9]} 52. Nc6 {[%clk 0:01:22.9]}
52... Nf7 {[%clk 0:00:06.7]} 53. Nd4 {[%clk 0:01:15.4]} 53... Ne5 {[%clk
0:00:02.7]} 54. Nxe6 {[%clk 0:01:13]} 54... Rg2 {[%clk 0:00:04.3]} 55. Rd1
{[%clk 0:01:08.7]} 55... f2 {[%clk 0:00:05.7]} 56. Rf1 {[%clk 0:00:58.6]} 56...
Nd3 {[%clk 0:00:07]} 57. Rf8 {[%clk 0:00:54.2]} 57... Kh6 {[%clk 0:00:04]} 58.
Nd4 {[%clk 0:00:52.6]} 58... Rg1 {[%clk 0:00:02.8]} 59. R1xf2 {[%clk 0:00:53.1]}
59... Nxf2 {[%clk 0:00:04.3]} 60. Rxf2 {[%clk 0:00:54.1]} 60... Kg6 {[%clk
0:00:05.1]} 61. Kb4 {[%clk 0:00:55.5]} 61... Rh1 {[%clk 0:00:06.3]} 62. a4
{[%clk 0:00:56.7]} 62... Ra1 {[%clk 0:00:07.6]} 63. a5 {[%clk 0:00:57.7]} 63...
Kg5 {[%clk 0:00:09.2]} 64. Kb5 {[%clk 0:00:58.4]} 64... Bd3+ {[%clk 0:00:10.3]}
65. Kb6 {[%clk 0:00:59.8]} 65... Kg4 {[%clk 0:00:11.6]} 66. b4 {[%clk
0:01:01.1]} 66... Ra3 {[%clk 0:00:12.8]} 67. b5 {[%clk 0:01:01.3]} 67... Rxc3
{[%clk 0:00:13.8]} 68. a6 {[%clk 0:01:02.7]} 68... Rc4 {[%clk 0:00:14.8]} 69. a7
{[%clk 0:01:03.4]} 69... Ra4 {[%clk 0:00:16.1]} 70. Nc6 {[%clk 0:01:03.3]} 70...
d4 {[%clk 0:00:16.2]} 71. Rf8 {[%clk 0:01:01.4]} 1-0